[Event "Late-Titled-Tuesday-Blitz-February-06-2024"]
[Site "Chess.com"]
[Date "2024.02.06"]
[Round "3"]
[White "gahryman"]
[Black "Harsha_Bharathakoti"]
[Result "0-1"]
[WhiteElo "2677"]
[BlackElo "2913"]
[TimeControl "180+1"]
[EndTime "14:28:57 PST"]
[Termination "Harsha_Bharathakoti won on time"]

1. e4 {[%clk 0:03:00.9]} 1... c5 {[%clk 0:02:59.5]} 2. Nc3 {[%clk 0:03:00.1]}
2... e6 {[%clk 0:02:59.4]} 3. f4 {[%clk 0:02:51.5]} 3... d5 {[%clk 0:02:58.7]}
4. Nf3 {[%clk 0:02:49.8]} 4... Nc6 {[%clk 0:02:58.2]} 5. Bb5 {[%clk 0:02:49.1]}
5... Ne7 {[%clk 0:02:54.1]} 6. O-O {[%clk 0:02:46.6]} 6... a6 {[%clk 0:02:53.5]}
7. Bxc6+ {[%clk 0:02:45.6]} 7... Nxc6 {[%clk 0:02:53.9]} 8. d3 {[%clk
0:02:44.6]} 8... Be7 {[%clk 0:02:52.5]} 9. Kh1 {[%clk 0:02:38.6]} 9... O-O
{[%clk 0:02:47.4]} 10. Ne5 {[%clk 0:02:38.5]} 10... Qd6 {[%clk 0:02:13.4]} 11.
Nxc6 {[%clk 0:02:29.3]} 11... Qxc6 {[%clk 0:02:14.3]} 12. Qe2 {[%clk 0:02:29.3]}
12... dxe4 {[%clk 0:02:03.9]} 13. dxe4 {[%clk 0:02:28.2]} 13... b5 {[%clk
0:02:04.4]} 14. f5 {[%clk 0:01:36.8]} 14... exf5 {[%clk 0:02:02.9]} 15. exf5
{[%clk 0:01:25.8]} 15... Re8 {[%clk 0:01:55.9]} 16. Qg4 {[%clk 0:01:00.1]} 16...
Bb7 {[%clk 0:01:34]} 17. Bf4 {[%clk 0:00:49.5]} 17... Bf6 {[%clk 0:01:23.1]} 18.
Rad1 {[%clk 0:00:46.5]} 18... Rad8 {[%clk 0:01:15.6]} 19. Rxd8 {[%clk
0:00:39.2]} 19... Rxd8 {[%clk 0:01:16.5]} 20. Re1 {[%clk 0:00:39.5]} 20... h5
{[%clk 0:01:12.4]} 21. Qg3 {[%clk 0:00:36.4]} 21... Re8 {[%clk 0:01:08.5]} 22.
Rd1 {[%clk 0:00:33.5]} 22... h4 {[%clk 0:00:58.9]} 23. Qg4 {[%clk 0:00:32.4]}
23... b4 {[%clk 0:00:59.5]} 24. Nb1 {[%clk 0:00:22.1]} 24... h3 {[%clk
0:00:45.2]} 25. Qxh3 {[%clk 0:00:20.6]} 25... Re2 {[%clk 0:00:45.9]} 26. Rg1
{[%clk 0:00:19.7]} 26... Bd4 {[%clk 0:00:37]} 27. Qg4 {[%clk 0:00:19.8]} 27...
Rxc2 {[%clk 0:00:28.8]} 28. f6 {[%clk 0:00:18.7]} 28... Qxf6 {[%clk 0:00:26.2]}
29. Nd2 {[%clk 0:00:13.5]} 29... Bxg1 {[%clk 0:00:25.7]} 30. Kxg1 {[%clk
0:00:13.7]} 30... Qd4+ {[%clk 0:00:23.1]} 0-1

[Event "Late-Titled-Tuesday-Blitz-February-06-2024"]
[Site "Chess.com"]
[Date "2024.02.06"]
[Round "3"]
[White "jens1102"]
[Black "MolecularChemist"]
[Result "0-1"]
[WhiteElo "2618"]
[BlackElo "2953"]
[TimeControl "180+1"]
[EndTime "14:28:57 PST"]
[Termination "MolecularChemist won by checkmate"]

1. d4 {[%clk 0:02:49]} 1... Nf6 {[%clk 0:02:59.1]} 2. c4 {[%clk 0:02:49.2]} 2...
b6 {[%clk 0:02:59]} 3. Nf3 {[%clk 0:02:49.1]} 3... Bb7 {[%clk 0:02:59.1]} 4. Nc3
{[%clk 0:02:49.3]} 4... e6 {[%clk 0:02:59.7]} 5. a3 {[%clk 0:02:49.1]} 5... Be7
{[%clk 0:02:58.4]} 6. Bf4 {[%clk 0:02:48.8]} 6... O-O {[%clk 0:02:58.4]} 7. e3
{[%clk 0:02:49.4]} 7... d5 {[%clk 0:02:55.3]} 8. Bd3 {[%clk 0:02:48.6]} 8... c5
{[%clk 0:02:51.5]} 9. O-O {[%clk 0:02:47.3]} 9... cxd4 {[%clk 0:02:48.2]} 10.
Nxd4 {[%clk 0:02:45.7]} 10... Nc6 {[%clk 0:02:47.7]} 11. Ndb5 {[%clk 0:02:32.7]}
11... Rc8 {[%clk 0:01:55.3]} 12. Qe2 {[%clk 0:01:57.7]} 12... a6 {[%clk
0:01:35.2]} 13. cxd5 {[%clk 0:01:48.5]} 13... exd5 {[%clk 0:01:22]} 14. Nd4
{[%clk 0:01:44.2]} 14... Nxd4 {[%clk 0:01:22.4]} 15. exd4 {[%clk 0:01:45.1]}
15... b5 {[%clk 0:01:21]} 16. Bf5 {[%clk 0:01:42.6]} 16... Rc4 {[%clk
0:01:19.5]} 17. Be5 {[%clk 0:01:31.6]} 17... Nd7 {[%clk 0:01:08.6]} 18. Rad1
{[%clk 0:01:23.2]} 18... Nxe5 {[%clk 0:01:06.7]} 19. dxe5 {[%clk 0:01:24.1]}
19... g6 {[%clk 0:00:52.2]} 20. Bd3 {[%clk 0:01:19.5]} 20... Rc7 {[%clk
0:00:45.3]} 21. e6 {[%clk 0:01:18.9]} 21... Bd6 {[%clk 0:00:40.6]} 22. Rfe1
{[%clk 0:01:14.1]} 22... Qf6 {[%clk 0:00:34.2]} 23. exf7+ {[%clk 0:01:06]} 23...
Rcxf7 {[%clk 0:00:35.1]} 24. Rd2 {[%clk 0:01:00.7]} 24... Qg5 {[%clk 0:00:24.5]}
25. f3 {[%clk 0:00:52.9]} 25... Qh4 {[%clk 0:00:21.4]} 26. g3 {[%clk 0:00:30.1]}
26... Bxg3 {[%clk 0:00:17.1]} 27. hxg3 {[%clk 0:00:30.5]} 27... Qxg3+ {[%clk
0:00:18]} 28. Kh1 {[%clk 0:00:28.5]} 28... Rxf3 {[%clk 0:00:15.2]} 29. Rg1
{[%clk 0:00:28.6]} 29... Qh4+ {[%clk 0:00:13.8]} 30. Qh2 {[%clk 0:00:24.2]}
30... Rh3 {[%clk 0:00:14.3]} 31. Bxg6 {[%clk 0:00:22.3]} 31... hxg6 {[%clk
0:00:12.9]} 32. Rxg6+ {[%clk 0:00:22.4]} 32... Kh7 {[%clk 0:00:10.5]} 33. Rg1
{[%clk 0:00:20.3]} 33... d4+ {[%clk 0:00:10]} 34. Ne4 {[%clk 0:00:20.2]} 34...
Bxe4+ {[%clk 0:00:08.9]} 35. Rdg2 {[%clk 0:00:20.7]} 35... Rxh2# {[%clk
0:00:09.2]} 0-1

[Event "Late-Titled-Tuesday-Blitz-February-06-2024"]
[Site "Chess.com"]
[Date "2024.02.06"]
[Round "3"]
[White "OparinGrigoriy"]
[Black "komogro"]
[Result "1-0"]
[WhiteElo "2989"]
[BlackElo "2519"]
[TimeControl "180+1"]
[EndTime "14:28:58 PST"]
[Termination "OparinGrigoriy won on time"]

1. a3 {[%clk 0:03:00.9]} 1... e5 {[%clk 0:02:56.2]} 2. c4 {[%clk 0:03:01]} 2...
Nf6 {[%clk 0:02:55.6]} 3. Nc3 {[%clk 0:03:01.6]} 3... d5 {[%clk 0:02:55.3]} 4.
cxd5 {[%clk 0:03:01.6]} 4... Nxd5 {[%clk 0:02:56.2]} 5. e3 {[%clk 0:03:01.5]}
5... Be7 {[%clk 0:02:52.3]} 6. Nf3 {[%clk 0:03:01.1]} 6... Nxc3 {[%clk
0:02:34.9]} 7. bxc3 {[%clk 0:03:02]} 7... Nd7 {[%clk 0:02:30.4]} 8. d4 {[%clk
0:03:01.5]} 8... Bd6 {[%clk 0:02:28.4]} 9. Bd3 {[%clk 0:03:01.1]} 9... O-O
{[%clk 0:02:27.5]} 10. O-O {[%clk 0:03:01.7]} 10... c6 {[%clk 0:02:21.1]} 11. e4
{[%clk 0:03:01]} 11... Qe7 {[%clk 0:02:18.4]} 12. Re1 {[%clk 0:03:00]} 12... f6
{[%clk 0:02:12.2]} 13. a4 {[%clk 0:02:57.5]} 13... a5 {[%clk 0:02:06.2]} 14. Rb1
{[%clk 0:02:56.4]} 14... Kh8 {[%clk 0:02:05.5]} 15. Nh4 {[%clk 0:02:55.3]} 15...
g6 {[%clk 0:01:58.7]} 16. Bh6 {[%clk 0:02:55.1]} 16... Re8 {[%clk 0:01:58.4]}
17. Qf3 {[%clk 0:02:42.4]} 17... Nf8 {[%clk 0:01:50.2]} 18. Bc2 {[%clk
0:02:21.5]} 18... Ne6 {[%clk 0:01:48.9]} 19. Rbd1 {[%clk 0:02:21.7]} 19... b5
{[%clk 0:01:25.2]} 20. Bb3 {[%clk 0:02:17.2]} 20... exd4 {[%clk 0:01:10.7]} 21.
cxd4 {[%clk 0:02:17]} 21... Bb4 {[%clk 0:01:11.2]} 22. Re3 {[%clk 0:02:13]}
22... Bb7 {[%clk 0:01:02.9]} 23. d5 {[%clk 0:02:07.4]} 23... Nc5 {[%clk
0:00:59.3]} 24. Bc2 {[%clk 0:02:04.5]} 24... Qf7 {[%clk 0:00:33.1]} 25. e5
{[%clk 0:02:04]} 25... cxd5 {[%clk 0:00:28.4]} 26. exf6 {[%clk 0:02:01]} 26...
Rxe3 {[%clk 0:00:27.3]} 27. Bg7+ {[%clk 0:02:01.4]} 27... Kg8 {[%clk 0:00:26]}
28. Qxe3 {[%clk 0:02:01.9]} 28... Re8 {[%clk 0:00:21.4]} 29. Qh6 {[%clk
0:01:59.2]} 29... Ne4 {[%clk 0:00:17.1]} 30. h3 {[%clk 0:01:53.3]} 30... Rc8
{[%clk 0:00:13.8]} 31. Bxe4 {[%clk 0:01:48.8]} 31... dxe4 {[%clk 0:00:13.8]} 32.
axb5 {[%clk 0:01:40.5]} 32... a4 {[%clk 0:00:09.6]} 33. Qe3 {[%clk 0:01:30.7]}
33... a3 {[%clk 0:00:08.2]} 34. Nxg6 {[%clk 0:01:07.1]} 34... Qxg6 {[%clk
0:00:05.8]} 35. Qb3+ {[%clk 0:01:07.3]} 35... Qf7 {[%clk 0:00:04]} 36. Qxb4
{[%clk 0:01:07.8]} 36... a2 {[%clk 0:00:04.9]} 37. Qb2 {[%clk 0:01:02.3]} 37...
Bd5 {[%clk 0:00:04]} 38. b6 {[%clk 0:01:00.9]} 38... Rb8 {[%clk 0:00:03.9]} 39.
Bh6 {[%clk 0:01:00.7]} 39... Qg6 {[%clk 0:00:02.3]} 40. Be3 {[%clk 0:01:00.9]}
40... Kf7 {[%clk 0:00:02]} 41. Rxd5 {[%clk 0:01:00.6]} 41... Qxf6 {[%clk
0:00:01.5]} 42. Rd7+ {[%clk 0:00:58.4]} 1-0

[Event "Late-Titled-Tuesday-Blitz-February-06-2024"]
[Site "Chess.com"]
[Date "2024.02.06"]
[Round "3"]
[White "Chess2Hawks"]
[Black "guillembaches"]
[Result "0-1"]
[WhiteElo "2232"]
[BlackElo "2552"]
[TimeControl "180+1"]
[EndTime "14:29:00 PST"]
[Termination "guillembaches won on time"]

1. d4 {[%clk 0:02:22.8]} 1... d5 {[%clk 0:02:59.6]} 2. Nf3 {[%clk 0:02:23.1]}
2... e6 {[%clk 0:02:59.9]} 3. c4 {[%clk 0:02:22.2]} 3... a6 {[%clk 0:02:59.8]}
4. cxd5 {[%clk 0:02:20.6]} 4... exd5 {[%clk 0:02:59.8]} 5. Nc3 {[%clk 0:02:21]}
5... Nf6 {[%clk 0:03:00.3]} 6. Bg5 {[%clk 0:02:19.6]} 6... Be6 {[%clk
0:03:00.4]} 7. e3 {[%clk 0:02:19.3]} 7... Nbd7 {[%clk 0:03:00.8]} 8. Bd3 {[%clk
0:02:18.7]} 8... Bd6 {[%clk 0:03:01.2]} 9. O-O {[%clk 0:02:17.9]} 9... c6 {[%clk
0:03:01.8]} 10. Rc1 {[%clk 0:02:17.2]} 10... Qc7 {[%clk 0:03:01.1]} 11. h3
{[%clk 0:02:15.5]} 11... h6 {[%clk 0:03:00.9]} 12. Bxf6 {[%clk 0:02:14.8]} 12...
Nxf6 {[%clk 0:03:01.4]} 13. a3 {[%clk 0:02:13.6]} 13... O-O {[%clk 0:02:46.1]}
14. b4 {[%clk 0:02:12.5]} 14... Rfe8 {[%clk 0:02:42.6]} 15. Na4 {[%clk
0:02:06.4]} 15... Qe7 {[%clk 0:02:24.9]} 16. Nc5 {[%clk 0:02:00.1]} 16... Bc8
{[%clk 0:02:23.6]} 17. Qc2 {[%clk 0:01:49.5]} 17... Ne4 {[%clk 0:02:07.6]} 18.
Bxe4 {[%clk 0:01:38.8]} 18... dxe4 {[%clk 0:02:05.9]} 19. Nd2 {[%clk 0:01:38.2]}
19... f5 {[%clk 0:01:59.4]} 20. Rfd1 {[%clk 0:01:32.4]} 20... Qf7 {[%clk
0:01:48.8]} 21. Nf1 {[%clk 0:01:31.2]} 21... Bb8 {[%clk 0:01:37]} 22. Qc4 {[%clk
0:01:29]} 22... Qxc4 {[%clk 0:01:33.8]} 23. Rxc4 {[%clk 0:01:28.6]} 23... Kf7
{[%clk 0:01:28.5]} 24. Rdc1 {[%clk 0:01:27.4]} 24... Bd6 {[%clk 0:01:24.7]} 25.
g3 {[%clk 0:01:21]} 25... g5 {[%clk 0:01:24]} 26. Kg2 {[%clk 0:01:20.3]} 26...
f4 {[%clk 0:01:23.1]} 27. R4c2 {[%clk 0:01:02.4]} 27... Re7 {[%clk 0:01:13.6]}
28. Nh2 {[%clk 0:00:58.8]} 28... f3+ {[%clk 0:01:07.4]} 29. Kg1 {[%clk
0:00:57.4]} 29... Bxh3 {[%clk 0:01:07.7]} 30. Nxb7 {[%clk 0:00:52.8]} 30... Rxb7
{[%clk 0:01:04.3]} 31. Rxc6 {[%clk 0:00:52.8]} 31... Rd7 {[%clk 0:00:59]} 32.
Rb6 {[%clk 0:00:52.3]} 32... Be6 {[%clk 0:00:50]} 33. Rcc6 {[%clk 0:00:51.4]}
33... Ke7 {[%clk 0:00:47.5]} 34. Rxa6 {[%clk 0:00:50.3]} 34... Rxa6 {[%clk
0:00:47.6]} 35. Rxa6 {[%clk 0:00:51.2]} 35... Rc7 {[%clk 0:00:48.1]} 36. Nf1
{[%clk 0:00:02.4]} 36... Rc1 {[%clk 0:00:47.2]} 0-1

[Event "Late-Titled-Tuesday-Blitz-February-06-2024"]
[Site "Chess.com"]
[Date "2024.02.06"]
[Round "3"]
[White "Squirlolz"]
[Black "KaydenTroffChess"]
[Result "1-0"]
[WhiteElo "2580"]
[BlackElo "2843"]
[TimeControl "180+1"]
[EndTime "14:29:04 PST"]
[Termination "Squirlolz won by resignation"]

1. e4 {[%clk 0:03:00.9]} 1... c5 {[%clk 0:02:59.9]} 2. Nf3 {[%clk 0:02:59.3]}
2... g6 {[%clk 0:03:00.1]} 3. c3 {[%clk 0:02:58.8]} 3... Bg7 {[%clk 0:02:59.9]}
4. d4 {[%clk 0:02:59.1]} 4... cxd4 {[%clk 0:03:00.8]} 5. cxd4 {[%clk 0:02:59.1]}
5... d5 {[%clk 0:03:01.3]} 6. e5 {[%clk 0:02:59.5]} 6... Nc6 {[%clk 0:03:01.7]}
7. Bb5 {[%clk 0:02:59.3]} 7... Nh6 {[%clk 0:03:02.3]} 8. h3 {[%clk 0:02:57.7]}
8... O-O {[%clk 0:03:01.8]} 9. O-O {[%clk 0:02:56.9]} 9... f6 {[%clk 0:03:02]}
10. Bxc6 {[%clk 0:02:55.2]} 10... bxc6 {[%clk 0:03:02]} 11. Re1 {[%clk
0:02:55.5]} 11... Nf7 {[%clk 0:02:54.4]} 12. Bf4 {[%clk 0:02:48.7]} 12... Qb6
{[%clk 0:02:35.2]} 13. Nc3 {[%clk 0:02:29.8]} 13... fxe5 {[%clk 0:02:31.2]} 14.
Nxe5 {[%clk 0:02:25.8]} 14... Nxe5 {[%clk 0:02:30.5]} 15. Bxe5 {[%clk 0:02:26]}
15... Bxe5 {[%clk 0:02:27.7]} 16. Rxe5 {[%clk 0:02:26.9]} 16... Qxb2 {[%clk
0:02:27.5]} 17. Qe1 {[%clk 0:02:16.7]} 17... Rxf2 {[%clk 0:01:48]} 18. Qxf2
{[%clk 0:02:13.3]} 18... Qxa1+ {[%clk 0:01:47.8]} 19. Kh2 {[%clk 0:01:35.3]}
19... Qxc3 {[%clk 0:01:43.7]} 20. Rxe7 {[%clk 0:01:35.1]} 20... Bf5 {[%clk
0:01:41.6]} 21. Qh4 {[%clk 0:01:35.6]} 21... g5 {[%clk 0:00:24.3]} 22. Qxg5+
{[%clk 0:01:34.4]} 22... Bg6 {[%clk 0:00:24.5]} 23. Qf6 {[%clk 0:01:35]} 23...
Qxd4 {[%clk 0:00:24.5]} 24. Qxd4 {[%clk 0:01:34.5]} 24... Bf7 {[%clk 0:00:25.3]}
25. Qf6 {[%clk 0:01:13.6]} 25... Rf8 {[%clk 0:00:25.1]} 26. Qg5+ {[%clk
0:01:06.4]} 26... Bg6 {[%clk 0:00:23.1]} 27. Rxa7 {[%clk 0:01:02.3]} 27... Rf7
{[%clk 0:00:20.6]} 28. Rxf7 {[%clk 0:01:01.1]} 28... Kxf7 {[%clk 0:00:21.5]} 29.
Qe5 {[%clk 0:00:59.7]} 29... Be4 {[%clk 0:00:18.7]} 30. a3 {[%clk 0:00:58.6]}
30... c5 {[%clk 0:00:18.4]} 31. a4 {[%clk 0:00:58.5]} 31... c4 {[%clk
0:00:14.8]} 32. a5 {[%clk 0:00:57.7]} 32... c3 {[%clk 0:00:15.1]} 33. Qxc3
{[%clk 0:00:57]} 33... Ke6 {[%clk 0:00:16]} 34. Qd4 {[%clk 0:00:56.1]} 34... Kd6
{[%clk 0:00:14.9]} 35. a6 {[%clk 0:00:56.1]} 35... Kc6 {[%clk 0:00:15.6]} 36. a7
{[%clk 0:00:56.2]} 36... Kb7 {[%clk 0:00:16.5]} 37. h4 {[%clk 0:00:56.2]} 37...
h5 {[%clk 0:00:15.8]} 38. Kg3 {[%clk 0:00:55.6]} 38... Bg6 {[%clk 0:00:12]} 39.
Kf4 {[%clk 0:00:55.5]} 39... Be8 {[%clk 0:00:12.2]} 40. Kg5 {[%clk 0:00:55.6]}
40... Bf7 {[%clk 0:00:08.7]} 41. Kf6 {[%clk 0:00:55.5]} 41... Be8 {[%clk
0:00:09]} 42. Kg7 {[%clk 0:00:55.6]} 42... Bc6 {[%clk 0:00:09]} 43. Kh8 {[%clk
0:00:55.6]} 43... Bd7 {[%clk 0:00:09.2]} 44. g3 {[%clk 0:00:55.6]} 44... Bc6
{[%clk 0:00:09.4]} 45. Qc5 {[%clk 0:00:55.6]} 45... Bd7 {[%clk 0:00:08.9]} 46.
Kg7 {[%clk 0:00:55.7]} 46... d4 {[%clk 0:00:08.5]} 47. Qxd4 {[%clk 0:00:54.4]}
47... Bc6 {[%clk 0:00:09]} 48. Kh6 {[%clk 0:00:54.1]} 48... Bf3 {[%clk
0:00:09.1]} 49. Kg5 {[%clk 0:00:53]} 49... Ka8 {[%clk 0:00:08.9]} 50. Qb6 {[%clk
0:00:50]} 50... Bb7 {[%clk 0:00:08.8]} 51. Kf4 {[%clk 0:00:49.8]} 1-0

[Event "Late-Titled-Tuesday-Blitz-February-06-2024"]
[Site "Chess.com"]
[Date "2024.02.06"]
[Round "3"]
[White "jinxy2009"]
[Black "Payyappat"]
[Result "0-1"]
[WhiteElo "2249"]
[BlackElo "2509"]
[TimeControl "180+1"]
[EndTime "14:29:10 PST"]
[Termination "Payyappat won by resignation"]

1. e4 {[%clk 0:03:00.9]} 1... c6 {[%clk 0:02:59.2]} 2. d4 {[%clk 0:03:00.2]}
2... d5 {[%clk 0:03:00.1]} 3. e5 {[%clk 0:02:59.8]} 3... Bf5 {[%clk 0:02:59.8]}
4. h4 {[%clk 0:02:54.8]} 4... Qc7 {[%clk 0:02:58.3]} 5. h5 {[%clk 0:02:53.7]}
5... c5 {[%clk 0:02:55.2]} 6. c3 {[%clk 0:02:50.1]} 6... cxd4 {[%clk 0:02:53.6]}
7. cxd4 {[%clk 0:02:51]} 7... Nc6 {[%clk 0:02:52]} 8. g4 {[%clk 0:02:24.9]} 8...
Be4 {[%clk 0:02:39.5]} 9. f3 {[%clk 0:02:23.3]} 9... Bxb1 {[%clk 0:02:37.3]} 10.
Rxb1 {[%clk 0:02:21.4]} 10... Qa5+ {[%clk 0:02:28.8]} 11. Bd2 {[%clk 0:02:16.4]}
11... Qxa2 {[%clk 0:02:27.8]} 12. Bb5 {[%clk 0:02:12.8]} 12... e6 {[%clk
0:02:23.7]} 13. Bxc6+ {[%clk 0:01:58.9]} 13... bxc6 {[%clk 0:02:23]} 14. Qc2
{[%clk 0:01:49.6]} 14... Rc8 {[%clk 0:02:16.3]} 15. Ne2 {[%clk 0:01:47.8]} 15...
c5 {[%clk 0:02:00.7]} 16. O-O {[%clk 0:01:29.9]} 16... Qc4 {[%clk 0:01:58.8]}
17. Qxc4 {[%clk 0:01:27]} 17... dxc4 {[%clk 0:01:59.7]} 18. Bc3 {[%clk
0:01:13.1]} 18... Ne7 {[%clk 0:01:53.4]} 19. dxc5 {[%clk 0:01:07.8]} 19... Nd5
{[%clk 0:01:52.8]} 20. Ra1 {[%clk 0:01:02.2]} 20... Nxc3 {[%clk 0:01:48.1]} 21.
Nxc3 {[%clk 0:00:56.6]} 21... Bxc5+ {[%clk 0:01:49]} 22. Kg2 {[%clk 0:00:55.8]}
22... O-O {[%clk 0:01:49.6]} 23. Rfd1 {[%clk 0:00:49.8]} 23... Rb8 {[%clk
0:01:45.2]} 24. Rd2 {[%clk 0:00:38.6]} 24... Rfd8 {[%clk 0:01:40.1]} 25. Rad1
{[%clk 0:00:36.9]} 25... Rxd2+ {[%clk 0:01:38.9]} 26. Rxd2 {[%clk 0:00:37.8]}
26... Bb4 {[%clk 0:01:37.9]} 27. Kh3 {[%clk 0:00:22.5]} 27... Kf8 {[%clk
0:01:30.6]} 28. Rd4 {[%clk 0:00:21.6]} 28... Bxc3 {[%clk 0:01:22.2]} 29. bxc3
{[%clk 0:00:21.4]} 29... Rc8 {[%clk 0:01:21.5]} 30. Rd7 {[%clk 0:00:20.6]} 30...
Rc5 {[%clk 0:01:15]} 31. Rxa7 {[%clk 0:00:19.9]} 31... Rxe5 {[%clk 0:01:14.8]}
32. Rc7 {[%clk 0:00:18.7]} 32... Re3 {[%clk 0:01:15]} 33. Kg3 {[%clk 0:00:19.2]}
33... Rxc3 {[%clk 0:01:14.3]} 34. Kf4 {[%clk 0:00:19.3]} 34... Rc1 {[%clk
0:01:12.5]} 35. Ke4 {[%clk 0:00:19.2]} 35... c3 {[%clk 0:01:11.5]} 36. Kd3
{[%clk 0:00:19.4]} 36... Rf1 {[%clk 0:01:09.5]} 37. Ke2 {[%clk 0:00:19.5]} 37...
Rc1 {[%clk 0:01:07.9]} 38. Kd3 {[%clk 0:00:19.5]} 38... Ke8 {[%clk 0:00:55.2]}
39. Rxc3 {[%clk 0:00:12.2]} 39... Rxc3+ {[%clk 0:00:53.8]} 40. Kxc3 {[%clk
0:00:12.7]} 40... Ke7 {[%clk 0:00:53.5]} 41. Kd4 {[%clk 0:00:12.7]} 41... Kf6
{[%clk 0:00:53.7]} 42. f4 {[%clk 0:00:12.5]} 42... e5+ {[%clk 0:00:41.6]} 43.
fxe5+ {[%clk 0:00:10.9]} 43... Kg5 {[%clk 0:00:42.5]} 44. Kd5 {[%clk 0:00:09.7]}
44... Kxg4 {[%clk 0:00:42.3]} 45. h6 {[%clk 0:00:09.3]} 45... gxh6 {[%clk
0:00:42.1]} 46. Kd6 {[%clk 0:00:09.6]} 46... Kf5 {[%clk 0:00:41.4]} 0-1

[Event "Late-Titled-Tuesday-Blitz-February-06-2024"]
[Site "Chess.com"]
[Date "2024.02.06"]
[Round "3"]
[White "egnfanclub"]
[Black "babero_gordo"]
[Result "0-1"]
[WhiteElo "2355"]
[BlackElo "2108"]
[TimeControl "180+1"]
[EndTime "14:29:11 PST"]
[Termination "babero_gordo won by resignation"]

1. e4 {[%clk 0:03:00.9]} 1... c5 {[%clk 0:02:58.5]} 2. Nc3 {[%clk 0:03:00.5]}
2... e6 {[%clk 0:02:58.4]} 3. f4 {[%clk 0:03:01.1]} 3... a6 {[%clk 0:02:54.4]}
4. Nf3 {[%clk 0:03:01.4]} 4... Nc6 {[%clk 0:02:54.6]} 5. g3 {[%clk 0:03:02]}
5... b5 {[%clk 0:02:51.6]} 6. Bg2 {[%clk 0:03:02.6]} 6... b4 {[%clk 0:02:45.7]}
7. Ne2 {[%clk 0:03:01.4]} 7... d6 {[%clk 0:02:45.6]} 8. d3 {[%clk 0:03:01.9]}
8... g6 {[%clk 0:02:41.6]} 9. O-O {[%clk 0:03:02.5]} 9... Bg7 {[%clk 0:02:41.7]}
10. c3 {[%clk 0:03:01.9]} 10... Rb8 {[%clk 0:02:41.5]} 11. d4 {[%clk 0:02:35.3]}
11... bxc3 {[%clk 0:02:34.1]} 12. bxc3 {[%clk 0:02:35.1]} 12... cxd4 {[%clk
0:02:34.5]} 13. cxd4 {[%clk 0:02:35.9]} 13... d5 {[%clk 0:02:28.3]} 14. exd5
{[%clk 0:02:22.9]} 14... exd5 {[%clk 0:02:29.2]} 15. Ne5 {[%clk 0:02:22.4]}
15... Nge7 {[%clk 0:02:23.8]} 16. Ba3 {[%clk 0:02:16.6]} 16... Bxe5 {[%clk
0:01:57.1]} 17. fxe5 {[%clk 0:02:08.2]} 17... O-O {[%clk 0:01:56]} 18. Nf4
{[%clk 0:02:05.1]} 18... Be6 {[%clk 0:01:52.6]} 19. Qd2 {[%clk 0:01:40.8]} 19...
Qb6 {[%clk 0:01:48.9]} 20. Bc5 {[%clk 0:01:37]} 20... Qb2 {[%clk 0:01:42.4]} 21.
Qxb2 {[%clk 0:01:08.5]} 21... Rxb2 {[%clk 0:01:43.3]} 22. Rfb1 {[%clk
0:00:53.5]} 22... Rfb8 {[%clk 0:01:41.9]} 23. Rxb2 {[%clk 0:00:50.5]} 23... Rxb2
{[%clk 0:01:41.1]} 24. a3 {[%clk 0:00:48.1]} 24... Nf5 {[%clk 0:01:25.5]} 25.
Nxd5 {[%clk 0:00:31.2]} 25... Ncxd4 {[%clk 0:01:16]} 26. Nf6+ {[%clk 0:00:24.8]}
26... Kg7 {[%clk 0:01:10.1]} 27. Be4 {[%clk 0:00:10.8]} 27... Ne2+ {[%clk
0:00:58.6]} 28. Kf1 {[%clk 0:00:09.8]} 28... Bc4 {[%clk 0:00:57.2]} 29. Ke1
{[%clk 0:00:06]} 29... Nc3 {[%clk 0:00:53.7]} 30. Bxf5 {[%clk 0:00:05.2]} 30...
Re2+ {[%clk 0:00:48.9]} 31. Kf1 {[%clk 0:00:04.5]} 31... Ra2+ {[%clk 0:00:46.7]}
32. Ke1 {[%clk 0:00:01.3]} 32... Rxa1+ {[%clk 0:00:45.3]} 33. Kd2 {[%clk
0:00:02.2]} 33... Nb1+ {[%clk 0:00:37.5]} 34. Kc2 {[%clk 0:00:01.6]} 34... gxf5
{[%clk 0:00:34.6]} 35. Kb2 {[%clk 0:00:01.2]} 35... Ra2+ {[%clk 0:00:32.7]} 36.
Kxb1 {[%clk 0:00:01.4]} 36... Rxh2 {[%clk 0:00:32.4]} 37. Ne8+ {[%clk
0:00:01.2]} 37... Kh6 {[%clk 0:00:31.5]} 38. Nd6 {[%clk 0:00:02.1]} 38... Bd3+
{[%clk 0:00:31.1]} 39. Kc1 {[%clk 0:00:02.7]} 39... Rc2+ {[%clk 0:00:30.4]} 40.
Kd1 {[%clk 0:00:03.1]} 40... Rxc5 {[%clk 0:00:30.2]} 0-1